lending/lending_fUSD_20241120
["ID","MTS","AMOUNT","RATE_DAILY","PERIOD"]
[342740059,1732090346739,-456.71,0.00061095,120]
[342740060,1732090346748,-594.51169618,0.00061095,120]
[342740061,1732090346757,-709.3,0.00061095,120]
[342740062,1732090346766,-512.01,0.00061095,120]
[342740063,1732090346775,-702.33404656,0.00061095,120]
[342740064,1732090346785,-500.0,0.00061095,120]
[342740065,1732090346794,-797.78,0.00061095,120]
[342740066,1732090346806,-155.2,0.00061095,120]
[342740067,1732090346817,-514.34,0.00061095,120]
[342740068,1732090346826,-849.77,0.00061095,120]
[342740069,1732090346836,-569.14989996,0.00061095,120]
[342740070,1732090346846,-2068.2,0.00061095,120]
[342740071,1732090346856,-700.89859428,0.00061095,120]
[342740072,1732090346866,-798.5285204,0.00061095,120]
[342740073,1732090346875,-1516.92384583,0.00061095,120]
[342740074,1732090346884,-982.35815446,0.00061095,120]
[342740075,1732090346894,-650.80572022,0.00061095,21]
[342740076,1732090346903,-998.10963729,0.00061095,120]
[342740077,1732090346913,-2581.65600824,0.00061095,120]
[342740078,1732090346922,-635.53276849,0.00061095,120]
[342740079,1732090346931,-2031.6,0.00061095,120]
[342740080,1732090346940,-3206.60906741,0.00061095,120]
[342740081,1732090346950,-711.44220476,0.00061095,120]
[342740082,1732090346959,-729.8584559,0.00061095,120]
[342740083,1732090346968,-5193.01190095,0.00061095,120]
[342740084,1732090346978,-707.83548238,0.00061095,120]
[342740085,1732090346987,-647.98685887,0.00061095,120]
[342740086,1732090346996,-334.5580713,0.00061095,120]
[342740087,1732090347006,-720.2385647,0.00061095,120]
[342740088,1732090347016,-717.80911589,0.00061095,120]
[342740089,1732090347027,-1703.76626133,0.00061095,120]
[342740090,1732090347036,-508.45678482,0.00061095,120]
[342740091,1732090347046,-2604.33164271,0.00061095,120]
[342740092,1732090347058,-2810.71617527,0.00061095,120]
[342740093,1732090347067,-2080.88442063,0.00061095,120]
[342740094,1732090347076,-500.31433727,0.00061095,120]
[342740095,1732090347086,-1137.38,0.00061095,3]
[342740096,1732090347095,-642.27496094,0.00061095,30]
[342740097,1732090347104,-1301.58056253,0.00061095,120]
[342740098,1732090347114,-505.90710081,0.00061095,120]
[342740099,1732090347123,-947.12844159,0.00061095,120]
[342740100,1732090347133,-668.08352714,0.00061095,120]
[342740101,1732090347142,-2400.0,0.0006112,120]
[342740102,1732090347151,-1100.0,0.0006112,120]
[342740103,1732090347160,-1200.0,0.0006112,120]
[342740104,1732090347169,-168.94933009,0.00061394,120]
[342740105,1732090347178,-20000.0,0.000615,120]
[342740106,1732090347187,-2400.0,0.00061668,120]
[342740107,1732090347195,-1100.0,0.00061668,120]
[342740108,1732090347205,-1200.0,0.00061668,120]
[342740109,1732090347215,-2018.0,0.00061791,2]
[342740110,1732090347224,-204.0,0.000618,120]
[342740111,1732090347233,-201.0,0.000618,120]
[342740112,1732090347242,-1000.0,0.000618,7]
[342740113,1732090347252,-60226.27614689,0.00061987,120]
[342740114,1732090347261,-300000.0,0.00062,120]
[342740115,1732090347270,-20000.0,0.00062,120]
[342740116,1732090347321,-201.0,0.00062,30]
[342740117,1732090347330,-204.0,0.00062,30]
[342740118,1732090347339,-214.0,0.00062,120]
[342740119,1732090347349,-19788.42379905,0.00062,120]
[342740120,1732090347358,-214.0,0.0006217,120]
[342740121,1732090347367,-2400.0,0.00062216,120]
[342740122,1732090347376,-1100.0,0.00062216,120]
[342740123,1732090347387,-1200.0,0.00062216,120]
[342740124,1732090347396,-2110.0,0.000625,30]
[342740125,1732090347405,-20000.0,0.000625,120]
[342740126,1732090347414,-2004.88025145,0.000627,90]
[342740127,1732090347423,-1365.0,0.000627,7]
[342740128,1732090347432,-2400.0,0.00062764,120]
[342740129,1732090347441,-405.02677566,0.00062764,120]
[342740130,1732090347450,-1200.0,0.00062764,120]
[342740131,1732090347459,-600.0,0.000628,120]
[342740132,1732090347468,-160.6,0.000629,120]
[342740133,1732090347478,-15820.43396941,0.000629,120]
[342740134,1732090347486,-189.9458293,0.00062957,3]
[342740135,1732090347496,-150.0,0.00062999,30]
[342740136,1732090347505,-500000.0,0.00063,120]
[342740137,1732090347514,-2110.0,0.00063,30]
[342740138,1732090347523,-1426044.74,0.00063,120]
[342740139,1732090347532,-20000.0,0.00063,120]
[342740140,1732090347541,-900.0,0.00063,2]
[342740141,1732090347551,-158.0,0.00063,80]
[342740142,1732090347560,-1000.0,0.00063,2]
[342740143,1732090347568,-1000.0,0.00063,2]
[342740144,1732090347577,-1000.0,0.00063,2]
[342740145,1732090347586,-365.54018036,0.00063,2]
[342740146,1732090347599,-20000.0,0.00063,120]
[342740147,1732090347608,-1263.58,0.00063128,30]
[342740148,1732090347617,-151.0,0.00063151,120]
[342740149,1732090347626,-590.22,0.00063295,30]
[342740150,1732090347635,-2400.0,0.00063312,120]
[342740151,1732090347644,-1200.0,0.00063312,120]
[342740152,1732090347653,-1725.83,0.00063324,30]
[342740153,1732090347662,-619.0,0.000634,30]
[342740154,1732090347670,-787.85,0.00063483,30]
[342740155,1732090347679,-2110.0,0.000635,30]
[342740156,1732090347688,-6855.0,0.000635,120]
[342740157,1732090347697,-153.0,0.00063574,120]
[342740158,1732090347706,-1000.0,0.000636,7]
[342740159,1732090347716,-153.0,0.00063619,120]
[342740160,1732090347725,-153.0,0.00063705,120]
[342740161,1732090347734,-600.0,0.000638,120]
[342740162,1732090347742,-1824.58333868,0.0006386,120]
[342740163,1732090347751,-1200.0,0.0006386,120]
[342740164,1732090347760,-594.2,0.0006386,30]
[342740165,1732090347769,-193.0,0.000639,50]
[342740166,1732090347777,-193.0,0.000639,50]
[342740167,1732090347786,-646.07,0.00063912,30]
[342740168,1732090347795,-262.77,0.00063956,120]
[342740169,1732090347806,-1336.4262478,0.00063956,3]
[342740170,1732090347815,-309.88,0.00063973,30]
[342740171,1732090347824,-500000.0,0.00064,120]
[342740172,1732090347833,-2110.0,0.00064,30]
[342740173,1732090347842,-9188.05845081,0.00064,120]
[342740174,1732090347852,-4188.41312191,0.00064,6]
[342740175,1732090347862,-150.0,0.00064162,30]
[342740176,1732090347872,-204.0,0.000642,120]
[342740177,1732090347881,-201.0,0.000642,120]
[342740178,1732090347891,-150.0,0.00064226,30]
[342740179,1732090347900,-150.0,0.00064227,30]
[342740180,1732090347909,-150.0,0.00064227,30]
[342740181,1732090347919,-150.0,0.0006423,30]
[342740182,1732090347928,-150.0,0.00064231,60]
[342740183,1732090347937,-150.0,0.00064241,30]
[342740184,1732090347947,-150.0,0.00064242,30]
[342740185,1732090347956,-150.0,0.00064252,60]
[342740186,1732090347965,-226.88814784,0.00064253,60]
[342740187,1732090347974,-150.0,0.0006426,60]
[342740188,1732090347984,-150.0,0.00064261,30]
[342740189,1732090347993,-150.0,0.00064263,60]
[342740190,1732090348003,-150.0,0.00064268,30]
[342740191,1732090348013,-150.0,0.00064268,60]
[342740192,1732090348022,-150.0,0.00064278,60]
[342740193,1732090348031,-150.0,0.00064292,30]
[342740194,1732090348041,-150.0,0.00064296,30]
[342740195,1732090348050,-201.0,0.000643,30]
[342740196,1732090348060,-204.0,0.000643,30]
[342740197,1732090348069,-214.0,0.000643,120]
[342740198,1732090348078,-150.0,0.00064303,30]
[342740199,1732090348088,-150.0,0.00064323,30]
[342740200,1732090348097,-150.0,0.00064324,30]
[342740201,1732090348107,-150.0,0.00064325,30]
[342740202,1732090348116,-150.0,0.00064331,60]
[342740203,1732090348125,-150.0,0.00064332,30]
[342740204,1732090348134,-150.0,0.00064334,60]
[342740205,1732090348143,-150.0,0.00064336,60]
[342740206,1732090348152,-150.0,0.00064338,30]
[342740207,1732090348161,-150.0,0.00064355,60]
[342740208,1732090348170,-150.0,0.00064357,30]
[342740209,1732090348180,-150.0,0.00064358,30]
[342740210,1732090348189,-150.0,0.00064359,60]
[342740211,1732090348198,-150.0,0.00064365,30]
[342740212,1732090348207,-150.0,0.00064366,60]
[342740213,1732090348217,-150.0,0.00064374,60]
[342740214,1732090348225,-214.0,0.0006439,120]
[342740215,1732090348234,-150.0,0.000644,30]
[342740216,1732090348244,-150.0,0.00064401,30]
[342740217,1732090348253,-150.0,0.00064401,60]
[342740218,1732090348262,-1200.0,0.00064408,120]
[342740219,1732090348270,-150.0,0.00064408,30]
[342740220,1732090348279,-150.0,0.00064414,60]
[342740221,1732090348288,-1500.0,0.00064416,60]
[342740222,1732090348298,-150.0,0.00064417,30]
[342740223,1732090348314,-1500.0,0.0006442,60]
[342740224,1732090348324,-150.0,0.00064424,30]
[342740225,1732090348333,-1500.0,0.00064429,60]
[342740226,1732090348343,-150.0,0.00064436,60]
[342740227,1732090348354,-1500.0,0.0006445,60]
[342740228,1732090348363,-150.0,0.00064453,30]
[342740229,1732090348372,-150.0,0.00064455,30]
[342740230,1732090348383,-150.0,0.00064456,60]
[342740231,1732090348393,-150.0,0.00064462,30]
[342740232,1732090348401,-150.0,0.00064464,30]
[342740233,1732090348411,-150.0,0.00064469,60]
[342740234,1732090348420,-1500.0,0.00064482,60]
[342740235,1732090348429,-150.0,0.00064483,30]
[342740236,1732090348437,-150.0,0.00064484,30]
[342740237,1732090348446,-150.0,0.00064493,30]
[342740238,1732090348456,-150.0,0.00064497,30]
[342740239,1732090348464,-150.0,0.00064499,60]
[342740240,1732090348473,-2110.0,0.000645,30]
[342740241,1732090348482,-150000.0,0.000645,120]
[342740242,1732090348491,-150.0,0.00064503,60]
[342740243,1732090348500,-150.0,0.00064505,30]
[342740244,1732090348509,-150.0,0.00064506,30]
[342740245,1732090348518,-1500.0,0.00064507,60]
[342740246,1732090348527,-150.0,0.00064511,30]
[342740247,1732090348536,-150.0,0.00064514,30]
[342740248,1732090348546,-1500.0,0.00064521,60]
[342740249,1732090348556,-150.0,0.00064522,30]
[342740250,1732090348566,-150.0,0.00064524,60]
[342740251,1732090348575,-150.0,0.00064525,30]
[342740252,1732090348585,-150.0,0.00064529,30]
[342740253,1732090348594,-150.0,0.0006453,60]
[342740254,1732090348603,-1500.0,0.00064532,60]
[342740255,1732090348612,-150.0,0.00064532,30]
[342740256,1732090348621,-150.0,0.00064534,30]
[342740257,1732090348631,-150.0,0.00064543,30]
[342740258,1732090348640,-150.0,0.00064543,60]
[342740259,1732090348648,-150.0,0.00064546,60]
[342740260,1732090348657,-150.0,0.00064548,30]
[342740261,1732090348666,-150.0,0.00064548,30]
[342740262,1732090348675,-150.0,0.00064549,30]
[342740263,1732090348685,-150.0,0.00064552,30]
[342740264,1732090348694,-150.0,0.00064553,30]
[342740265,1732090348703,-150.0,0.00064556,30]
[342740266,1732090348716,-150.0,0.00064558,30]
[342740267,1732090348725,-150.0,0.00064561,30]
[342740268,1732090348734,-150.0,0.00064563,60]
[342740269,1732090348743,-1500.0,0.00064564,60]
[342740270,1732090348752,-1500.0,0.00064571,60]
[342740271,1732090348761,-150.0,0.0006458,30]
[342740272,1732090348770,-1321.35,0.00064587,30]
[342740273,1732090348779,-150.0,0.00064595,30]
[342740274,1732090348788,-150.0,0.00064599,30]
[342740275,1732090348797,-150.0,0.00064603,30]
[342740276,1732090348808,-150.0,0.00064605,30]
[342740277,1732090348817,-150.0,0.0006461,60]
[342740278,1732090348826,-150.0,0.00064611,60]
[342740279,1732090348836,-150.0,0.00064617,60]
[342740280,1732090348845,-150.0,0.00064623,30]
[342740281,1732090348854,-218.70225857,0.0006463,60]
[342740282,1732090348863,-2000.0,0.00064631,14]
[342740283,1732090348873,-2000.0,0.00064631,14]
[342740284,1732090348882,-150.0,0.00064635,60]
[342740285,1732090348891,-1500.0,0.00064643,60]
[342740286,1732090348901,-150.0,0.00064652,30]
[342740287,1732090348911,-150.0,0.00064655,30]
[342740288,1732090348920,-150.0,0.00064655,60]
[342740289,1732090348930,-150.0,0.00064655,30]
[342740290,1732090348939,-166.89162435,0.00064657,30]
[342740291,1732090348949,-150.0,0.0006466,30]
[342740292,1732090348959,-150.0,0.00064663,30]
[342740293,1732090348969,-150.0,0.00064663,30]
[342740294,1732090348978,-150.0,0.00064663,30]
[342740295,1732090348991,-150.0,0.00064664,60]
[342740296,1732090349002,-150.0,0.00064667,30]
[342740297,1732090349012,-150.0,0.00064667,30]
[342740298,1732090349022,-150.0,0.0006467,30]
[342740299,1732090349031,-150.0,0.0006467,60]
[342740300,1732090349041,-1500.0,0.00064671,60]
[342740301,1732090349050,-150.0,0.00064673,30]
[342740302,1732090349061,-150.0,0.00064678,30]
[342740303,1732090349070,-150.0,0.00064679,30]
[342740304,1732090349079,-150.0,0.00064681,30]
[342740305,1732090349089,-150.0,0.00064684,60]
[342740306,1732090349098,-150.0,0.00064687,30]
[342740307,1732090349107,-261.60435868,0.00064688,60]
[342740308,1732090349116,-150.0,0.00064694,30]
[342740309,1732090349125,-1500.0,0.00064694,60]
[342740310,1732090349134,-150.0,0.00064695,30]
[342740311,1732090349143,-150.0,0.00064697,60]
[342740312,1732090349152,-150.0,0.00064698,30]
[342740313,1732090349163,-322.42617439,0.00064702,60]
[342740314,1732090349173,-150.0,0.00064702,30]
[342740315,1732090349183,-150.0,0.00064714,60]
[342740316,1732090349193,-150.0,0.00064719,30]
[342740317,1732090349203,-1500.0,0.00064734,60]
[342740318,1732090349213,-150.0,0.00064737,30]
[342740319,1732090349222,-1500.0,0.00064743,60]
[342740320,1732090349232,-150.0,0.00064747,30]
[342740321,1732090349240,-52467.70063963,0.0006477,120]
[342740322,1732090349250,-150.0,0.00064772,30]
[342740323,1732090349259,-150.52,0.00064772,120]
[342740324,1732090349267,-150.0,0.00064773,30]
[342740325,1732090349276,-150.0,0.00064773,30]
[342740326,1732090349285,-150.0,0.00064779,30]
[342740327,1732090349294,-150.0,0.00064781,30]
[342740328,1732090349304,-150.0,0.00064782,30]
[342740329,1732090349315,-150.0,0.00064787,30]
[342740330,1732090349325,-150.0,0.00064794,30]
[342740331,1732090349334,-5385.0,0.00064798,80]
[342740332,1732090349344,-600.0,0.000648,120]
[342740333,1732090349354,-600.0,0.000648,120]
[342740334,1732090349363,-600.0,0.000648,120]
[342740335,1732090349372,-600.0,0.000648,120]
[342740336,1732090349382,-1500.0,0.00064806,60]
[342740337,1732090349392,-150.0,0.00064821,30]
[342740338,1732090349401,-150.0,0.00064821,60]
[342740339,1732090349410,-150.0,0.00064823,30]
[342740340,1732090349419,-150.0,0.00064823,30]
[342740341,1732090349429,-150.0,0.00064831,30]
[342740342,1732090349438,-150.0,0.00064833,60]
[342740343,1732090349448,-150.0,0.00064838,30]
[342740344,1732090349457,-150.0,0.0006484,30]
[342740345,1732090349466,-150.0,0.00064842,60]
[342740346,1732090349475,-150.0,0.00064845,30]
[342740347,1732090349484,-150.0,0.00064845,60]
[342740348,1732090349493,-150.0,0.00064856,30]
[342740349,1732090349502,-150.0,0.00064856,30]
[342740350,1732090349511,-150.0,0.0006486,60]
[342740351,1732090349520,-1500.0,0.00064869,60]
[342740352,1732090349529,-150.0,0.00064878,30]
[342740353,1732090349538,-150.0,0.00064882,60]
[342740354,1732090349547,-150.0,0.00064887,30]
[342740355,1732090349557,-150.0,0.00064889,60]
[342740356,1732090349566,-150.0,0.00064892,30]
[342740357,1732090349575,-150.0,0.000649,120]
[342740358,1732090349584,-254.039283,0.000649,120]
[342740359,1732090349594,-156.96,0.000649,120]
[342740360,1732090349603,-196.0,0.000649,50]
[342740361,1732090349612,-200.0,0.000649,50]
[342740362,1732090349621,-200.0,0.000649,50]
[342740363,1732090349630,-1500.0,0.00064901,60]
[342740364,1732090349639,-150.0,0.00064903,30]
[342740365,1732090349648,-300.0,0.00064904,60]
[342740366,1732090349657,-150.0,0.00064904,30]
[342740367,1732090349666,-1500.0,0.00064918,60]
[342740368,1732090349675,-150.0,0.00064921,30]
[342740369,1732090349684,-150.0,0.00064926,30]
[342740370,1732090349693,-150.0,0.00064926,30]
[342740371,1732090349703,-150.0,0.00064927,30]
[342740372,1732090349712,-150.0,0.00064928,30]
[342740373,1732090349721,-150.0,0.00064928,60]
[342740374,1732090349731,-150.0,0.00064935,30]
[342740375,1732090349739,-150.0,0.00064935,60]
[342740376,1732090349749,-150.0,0.0006494,30]
[342740377,1732090349758,-1500.0,0.0006494,60]
[342740378,1732090349767,-150.0,0.00064941,30]
[342740379,1732090349776,-150.0,0.00064941,60]
[342740380,1732090349785,-150.0,0.00064945,30]
[342740381,1732090349794,-150.0,0.00064949,30]
[342740382,1732090349805,-150.0,0.00064952,30]
[342740383,1732090349814,-150.0,0.00064954,30]
[342740384,1732090349822,-150.0,0.00064954,30]
[342740385,1732090349832,-1115.63167564,0.00064956,120]
[342740386,1732090349841,-150.0,0.00064956,60]
[342740387,1732090349851,-2870.0663483,0.00064956,4]
[342740388,1732090349860,-10000.0,0.00064999,120]
[342740389,1732090349869,-10000.0,0.00064999,120]
[342740390,1732090349879,-1000.0,0.00064999,120]
[342740391,1732090349888,-1650.94233007,0.00064999,120]
[342740392,1732090349898,-158035.04083262,0.00065,60]
[342740393,1732090349907,-10000.0,0.00065,120]
[342740394,1732090349919,-10000.0,0.00065,120]
[342740395,1732090349929,-62424.8967386,0.00065,120]
[342740396,1732090349938,-5112.0,0.00065,120]
[342740397,1732090349948,-250000.0,0.00065,120]
[342740398,1732090349957,-333361.61036819,0.00065,120]
[342740399,1732090349966,-260.0,0.00065,120]
[342740400,1732090349976,-195.90065182,0.00065,120]
[342740401,1732090349985,-500000.0,0.00065,120]
[342740402,1732090349995,-2110.0,0.00065,30]
[342740403,1732090350006,-950.0,0.00065,2]
[342740404,1732090350015,-875.3508,0.00065,30]
[342740405,1732090350025,-875.3508,0.00065,30]
[342740406,1732090350034,-1318.61589623,0.00065,30]
[342740407,1732090350044,-19832.77,0.00065,120]
[342740408,1732090350055,-2067.0333,0.00065,30]
[342740409,1732090350064,-2067.0333,0.00065,30]
[342740410,1732090350073,-3453.8542,0.00065,2]
[342740411,1732090350082,-3453.8542,0.00065,2]
[342740412,1732090350092,-363.4945494,0.00065051,4]
[342740413,1732090350101,-2000.0,0.00065205,120]
[342740414,1732090350110,-2000.0,0.00065479,120]
[342740415,1732090350119,-50000.0,0.000655,120]
[342740416,1732090350128,-2390.6640146,0.000655,120]
[342740417,1732090350137,-2110.0,0.000655,30]
[342740418,1732090350146,-2377.889,0.000656,60]
[342740419,1732090350155,-203.0,0.000656,120]
[342740420,1732090350165,-44669.9759,0.00065671,120]
[342740421,1732090350174,-378.15140803,0.00065674,120]
[342740422,1732090350184,-151.0,0.00065675,120]
[342740423,1732090350194,-159.844897,0.00065675,120]
[342740424,1732090350203,-151.0,0.00065675,120]
[342740425,1732090350212,-151.0,0.00065675,120]
[342740426,1732090350221,-151.0,0.00065675,120]
[342740427,1732090350230,-151.0,0.00065675,120]
[342740428,1732090350239,-151.0,0.00065675,120]
[342740429,1732090350248,-151.0,0.00065675,120]
[342740430,1732090350257,-288.362984,0.00065675,120]
[342740431,1732090350266,-151.0,0.00065675,120]
[342740432,1732090350274,-151.0,0.00065675,120]
[342740433,1732090350283,-151.0,0.00065675,120]
[342740434,1732090350292,-151.0,0.00065675,120]
[342740435,1732090350305,-151.0,0.00065675,120]
[342740436,1732090350316,-151.0,0.00065675,120]
[342740437,1732090350325,-151.0,0.00065675,120]
[342740438,1732090350334,-157.8,0.00065675,120]
[342740439,1732090350343,-151.191839,0.00065675,120]
[342740440,1732090350352,-151.0,0.00065675,120]
[342740441,1732090350361,-151.0,0.00065675,120]
[342740442,1732090350370,-151.0,0.00065675,120]
[342740443,1732090350379,-151.0,0.00065675,120]
[342740444,1732090350389,-151.0,0.00065675,120]
[342740445,1732090350397,-151.0,0.00065675,120]
[342740446,1732090350406,-151.0,0.00065675,120]
[342740447,1732090350415,-151.0,0.00065675,120]
[342740448,1732090350424,-151.0,0.00065675,120]
[342740449,1732090350432,-294.059268,0.00065675,120]
[342740450,1732090350441,-151.0,0.00065675,120]
[342740451,1732090350450,-151.0,0.00065675,120]
[342740452,1732090350460,-151.0,0.00065675,120]
[342740453,1732090350470,-151.0,0.00065675,120]
[342740454,1732090350480,-151.0,0.00065675,120]
[342740455,1732090350489,-151.406482,0.00065675,120]
[342740456,1732090350498,-151.0,0.00065675,120]
[342740457,1732090350507,-151.0,0.00065675,120]
[342740458,1732090350516,-151.0,0.00065675,120]
[342740459,1732090350525,-151.0,0.00065675,120]
[342740460,1732090350534,-151.0,0.00065675,120]
[342740461,1732090350543,-151.0,0.00065675,120]
[342740462,1732090350552,-151.0,0.00065675,120]
[342740463,1732090350561,-286.0,0.00065675,120]
[342740464,1732090350571,-471.298757,0.00065675,120]
[342740465,1732090350580,-471.298757,0.00065675,120]
[342740466,1732090350589,-471.298757,0.00065675,120]
[342740467,1732090350599,-471.298757,0.00065675,120]
[342740468,1732090350608,-471.298757,0.00065675,120]
[342740469,1732090350618,-471.298757,0.00065675,120]
[342740470,1732090350627,-471.298757,0.00065675,120]
[342740471,1732090350636,-471.298757,0.00065675,120]
[342740472,1732090350646,-471.298757,0.00065675,120]
[342740473,1732090350655,-471.298757,0.00065675,120]
[342740474,1732090350665,-471.298757,0.00065675,120]
[342740475,1732090350675,-471.298757,0.00065675,120]
[342740476,1732090350687,-471.298757,0.00065675,120]
[342740477,1732090350696,-471.298757,0.00065675,120]
[342740478,1732090350707,-471.298757,0.00065675,120]
[342740479,1732090350716,-471.298757,0.00065675,120]
[342740480,1732090350728,-471.298757,0.00065675,120]
[342740481,1732090350736,-471.298757,0.00065675,120]
[342740482,1732090350745,-471.298757,0.00065675,120]
[342740483,1732090350754,-471.298766,0.00065675,120]
[342740484,1732090350764,-200.0,0.00065675,120]
[342740485,1732090350773,-387.3221727,0.00065679,120]
[342740486,1732090350782,-864.91205528,0.00065683,120]
[342740487,1732090350791,-569.20534546,0.00065685,120]
[342740488,1732090350800,-1423.25675887,0.00065687,120]
[342740489,1732090350811,-4192.2562031,0.00065691,4]
[342740490,1732090350821,-11383.0442125,0.00065691,4]
[342740491,1732090350830,-864.91205528,0.00065692,120]
[342740492,1732090350841,-215.40714601,0.00065714,120]
[342740493,1732090350850,-200.0,0.00065731,120]
[342740494,1732090350859,-569.20534546,0.00065731,120]
[342740495,1732090350869,-44669.9759,0.00065736,120]
[342740496,1732090350878,-150.0,0.00065742,120]
[342740497,1732090350887,-1279.82091882,0.00065742,120]
[342740498,1732090350896,-1222.61211378,0.00065746,120]
[342740499,1732090350905,-1032.10373647,0.00065747,120]
[342740500,1732090350914,-378.15140803,0.00065747,120]
[342740501,1732090350923,-1222.61211378,0.00065748,120]
[342740502,1732090350932,-200.0,0.00065752,120]
[342740503,1732090350941,-2000.0,0.00065753,120]
[342740504,1732090350950,-600.0,0.00065753,120]
[342740505,1732090350960,-600.0,0.00065753,120]
[342740506,1732090350970,-600.0,0.00065753,120]
[342740507,1732090350979,-600.0,0.00065753,120]
[342740508,1732090350989,-600.0,0.00065753,120]
[342740509,1732090350998,-600.0,0.00065753,120]
[342740510,1732090351008,-600.0,0.00065753,120]
[342740511,1732090351017,-600.0,0.00065753,120]
[342740512,1732090351027,-600.0,0.00065753,120]
[342740513,1732090351036,-600.0,0.00065753,120]
[342740514,1732090351045,-600.0,0.00065753,120]
[342740515,1732090351055,-600.0,0.00065753,120]
[342740516,1732090351064,-600.0,0.00065753,120]
[342740517,1732090351074,-600.0,0.00065753,120]
[342740518,1732090351083,-600.0,0.00065753,120]
[342740519,1732090351093,-600.0,0.00065753,120]
[342740520,1732090351102,-302.89523359,0.00065753,120]
[342740521,1732090351111,-5000.0,0.00065753,70]
[342740522,1732090351120,-1294.93276529,0.00065757,120]
[342740523,1732090351129,-200.0,0.00065759,120]
[342740524,1732090351138,-44669.9759,0.00065763,120]
[342740525,1732090351147,-200.0,0.00065768,120]
[342740526,1732090351156,-936.95571525,0.00065768,120]
[342740527,1732090351165,-936.95571525,0.00065772,120]
[342740528,1732090351174,-877.32022363,0.00065775,120]
[342740529,1732090351183,-200.0,0.00065776,120]
[342740530,1732090351193,-1222.61211378,0.00065777,120]
[342740531,1732090351202,-1936.61086351,0.00065779,120]
[342740532,1732090351211,-864.91205528,0.00065779,120]
[342740533,1732090351221,-3167.98679593,0.00065779,120]
[342740534,1732090351230,-574.95441761,0.00065781,14]
[342740535,1732090351239,-1294.93276529,0.00065783,120]
[342740536,1732090351249,-877.32022363,0.00065785,120]
[342740537,1732090351258,-877.32022363,0.00065786,120]
[342740538,1732090351371,-1423.25675887,0.00065799,120]
[342740539,1732090351380,-500.0,0.000658,120]
[342740540,1732090351390,-14288.08003477,0.000658,120]
[342740541,1732090351399,-8001.13698055,0.000658,120]
[342740542,1732090351409,-600.0,0.000658,120]
[342740543,1732090351418,-569.20534546,0.000658,120]
[342740544,1732090351428,-215.40714601,0.00065803,120]
[342740545,1732090351437,-936.95571525,0.0006581,120]
[342740546,1732090351446,-864.91205528,0.00065812,120]
[342740547,1732090351455,-200.0,0.00065816,120]
[342740548,1732090351464,-387.3221727,0.0006582,120]
[342740549,1732090351473,-1032.10373647,0.00065823,120]
[342740550,1732090351485,-200.0,0.00065826,120]
[342740551,1732090351496,-1936.61086351,0.00065827,120]
[342740552,1732090351505,-1936.61086351,0.00065828,120]
[342740553,1732090351514,-44669.9759,0.00065836,120]
[342740554,1732090351524,-3167.98679593,0.00065842,120]
[342740555,1732090351533,-378.15140803,0.00065844,120]
[342740556,1732090351542,-200.0,0.00065847,120]
[342740557,1732090351552,-200.0,0.00065848,120]
[342740558,1732090351563,-877.32022363,0.00065852,120]